[Event "*** SCC Grand Prix: Titled Tuesday Blitz"]
[Site "Chess.com"]
[Date "2020.07.21"]
[Round "4"]
[White "Anton_Demchenko"]
[Black "Undisputed92"]
[Result "1/2-1/2"]
[WhiteElo "2829"]
[BlackElo "2651"]
[TimeControl "180+1"]
[EndTime "10:42:01 PDT"]
[Termination "Game drawn by stalemate"]

1. e4 {[%clk 0:03:00.9]} 1... e6 {[%clk 0:02:58.7]} 2. d4 {[%clk 0:03:00.8]}
2... d5 {[%clk 0:02:57.2]} 3. Nd2 {[%clk 0:03:01.2]} 3... a6 {[%clk 0:02:46]} 4.
Ngf3 {[%clk 0:02:58.2]} 4... c5 {[%clk 0:02:45.8]} 5. dxc5 {[%clk 0:02:59.1]}
5... Bxc5 {[%clk 0:02:43.7]} 6. Bd3 {[%clk 0:02:59.8]} 6... dxe4 {[%clk
0:02:29.4]} 7. Nxe4 {[%clk 0:02:59.6]} 7... Be7 {[%clk 0:02:29.4]} 8. Qe2 {[%clk
0:02:51]} 8... Nf6 {[%clk 0:02:26.5]} 9. Bd2 {[%clk 0:02:49.9]} 9... Nc6 {[%clk
0:02:14.1]} 10. O-O-O {[%clk 0:02:49.7]} 10... Nd4 {[%clk 0:02:08.6]} 11. Nxd4
{[%clk 0:02:45.7]} 11... Qxd4 {[%clk 0:02:09.5]} 12. Bc3 {[%clk 0:02:25.7]}
12... Qa4 {[%clk 0:02:07.2]} 13. Kb1 {[%clk 0:02:03]} 13... Bd7 {[%clk
0:02:00.3]} 14. Nxf6+ {[%clk 0:01:53.3]} 14... Bxf6 {[%clk 0:01:57.8]} 15. Bxf6
{[%clk 0:01:53.5]} 15... gxf6 {[%clk 0:01:58.7]} 16. Qf3 {[%clk 0:01:54.1]}
16... f5 {[%clk 0:01:50.4]} 17. Rhe1 {[%clk 0:01:50.9]} 17... O-O-O {[%clk
0:01:41.2]} 18. Qh5 {[%clk 0:01:51]} 18... Qg4 {[%clk 0:01:28.4]} 19. Qxg4
{[%clk 0:01:24.9]} 19... fxg4 {[%clk 0:01:29.3]} 20. Kc1 {[%clk 0:01:12.5]}
20... h5 {[%clk 0:01:27]} 21. Re5 {[%clk 0:01:09.5]} 21... f6 {[%clk 0:01:21.9]}
22. Rc5+ {[%clk 0:01:08.7]} 22... Kb8 {[%clk 0:01:15.9]} 23. Re1 {[%clk
0:00:56.3]} 23... e5 {[%clk 0:01:11.2]} 24. Be4 {[%clk 0:00:48.8]} 24... Bc8
{[%clk 0:01:03.8]} 25. c3 {[%clk 0:00:43.9]} 25... h4 {[%clk 0:00:58.5]} 26. Rd5
{[%clk 0:00:38]} 26... f5 {[%clk 0:00:54.6]} 27. Rxd8 {[%clk 0:00:36.5]} 27...
Rxd8 {[%clk 0:00:55.5]} 28. Bc2 {[%clk 0:00:37]} 28... e4 {[%clk 0:00:52.4]} 29.
Rd1 {[%clk 0:00:37.6]} 29... Rxd1+ {[%clk 0:00:43.4]} 30. Bxd1 {[%clk
0:00:37.7]} 30... Kc7 {[%clk 0:00:43.6]} 31. g3 {[%clk 0:00:37.5]} 31... hxg3
{[%clk 0:00:41.9]} 32. hxg3 {[%clk 0:00:37.3]} 32... Kd6 {[%clk 0:00:42.2]} 33.
Kd2 {[%clk 0:00:37.9]} 33... Ke5 {[%clk 0:00:42.4]} 34. Ke3 {[%clk 0:00:38.5]}
34... Be6 {[%clk 0:00:42.2]} 35. a3 {[%clk 0:00:36.6]} 35... a5 {[%clk
0:00:40.4]} 36. b4 {[%clk 0:00:36.2]} 36... b6 {[%clk 0:00:36.3]} 37. Ba4 {[%clk
0:00:36.2]} 37... Bc4 {[%clk 0:00:34.3]} 38. Bd7 {[%clk 0:00:35.8]} 38... Bd3
{[%clk 0:00:32]} 39. Be8 {[%clk 0:00:35.3]} 39... Bc4 {[%clk 0:00:31.9]} 40. Bg6
{[%clk 0:00:32.8]} 40... Be6 {[%clk 0:00:31]} 41. Be8 {[%clk 0:00:29.5]} 41...
Bc4 {[%clk 0:00:30.6]} 42. Ba4 {[%clk 0:00:27.8]} 42... Bd3 {[%clk 0:00:23.8]}
43. Bb3 {[%clk 0:00:27.9]} 43... Bf1 {[%clk 0:00:20.5]} 44. c4 {[%clk
0:00:28.2]} 44... axb4 {[%clk 0:00:20.5]} 45. axb4 {[%clk 0:00:28.2]} 45... Bd3
{[%clk 0:00:20.6]} 46. c5 {[%clk 0:00:28.4]} 46... bxc5 {[%clk 0:00:21.1]} 47.
bxc5 {[%clk 0:00:29.3]} 47... Bb5 {[%clk 0:00:21.4]} 48. Bg8 {[%clk 0:00:19.1]}
48... Bc6 {[%clk 0:00:21.2]} 49. Bc4 {[%clk 0:00:18.8]} 49... Ba4 {[%clk
0:00:21.1]} 50. Be2 {[%clk 0:00:15.1]} 50... Bd7 {[%clk 0:00:18.8]} 51. Ba6
{[%clk 0:00:15.4]} 51... Bc6 {[%clk 0:00:17.4]} 52. Bc8 {[%clk 0:00:15.6]} 52...
Ba4 {[%clk 0:00:13.9]} 53. Bb7 {[%clk 0:00:15.5]} 53... Be8 {[%clk 0:00:13]} 54.
c6 {[%clk 0:00:13.5]} 54... Kd6 {[%clk 0:00:13.1]} 55. Bc8 {[%clk 0:00:13.1]}
55... Bxc6 {[%clk 0:00:12.1]} 56. Bxf5 {[%clk 0:00:12.2]} 56... Ke5 {[%clk
0:00:12.7]} 57. Bxg4 {[%clk 0:00:12.8]} 57... Bd5 {[%clk 0:00:12.9]} 58. Bh3
{[%clk 0:00:13]} 58... Bc6 {[%clk 0:00:13.1]} 59. Bg2 {[%clk 0:00:12.9]} 59...
Bd5 {[%clk 0:00:12.6]} 60. Bf1 {[%clk 0:00:13.1]} 60... Bc6 {[%clk 0:00:12.7]}
61. Bc4 {[%clk 0:00:13.7]} 61... Bb7 {[%clk 0:00:12.8]} 62. Bb5 {[%clk
0:00:14.2]} 62... Bd5 {[%clk 0:00:12.9]} 63. Bd7 {[%clk 0:00:12.5]} 63... Bb7
{[%clk 0:00:13]} 64. Be8 {[%clk 0:00:10.6]} 64... Bd5 {[%clk 0:00:12.9]} 65. Bg6
{[%clk 0:00:06.1]} 65... Bc6 {[%clk 0:00:12.7]} 66. Bh5 {[%clk 0:00:05.6]} 66...
Bd5 {[%clk 0:00:12.7]} 67. Bd1 {[%clk 0:00:05.3]} 67... Bc6 {[%clk 0:00:12.6]}
68. Ke2 {[%clk 0:00:04.5]} 68... Bb5+ {[%clk 0:00:12.2]} 69. Kd2 {[%clk
0:00:03.5]} 69... Bc6 {[%clk 0:00:12]} 70. Bc2 {[%clk 0:00:04]} 70... Bd5 {[%clk
0:00:11.9]} 71. Ke1 {[%clk 0:00:04]} 71... Bc6 {[%clk 0:00:11.3]} 72. Kf1 {[%clk
0:00:04.3]} 72... Bd7 {[%clk 0:00:11.1]} 73. Kg1 {[%clk 0:00:03.4]} 73... Bg4
{[%clk 0:00:11.1]} 74. Kh2 {[%clk 0:00:03.4]} 74... Kd4 {[%clk 0:00:10.4]} 75.
Ba4 {[%clk 0:00:02.7]} 75... e3 {[%clk 0:00:10.3]} 76. fxe3+ {[%clk 0:00:02.8]}
76... Kxe3 {[%clk 0:00:11.2]} 77. Bc6 {[%clk 0:00:03.1]} 77... Be6 {[%clk
0:00:10.9]} 78. Bg2 {[%clk 0:00:04]} 78... Bf5 {[%clk 0:00:11.1]} 79. Bh3 {[%clk
0:00:04.2]} 79... Bg6 {[%clk 0:00:11.3]} 80. Bg4 {[%clk 0:00:04.6]} 80... Ke4
{[%clk 0:00:11]} 81. Kh3 {[%clk 0:00:05.2]} 81... Ke5 {[%clk 0:00:11.2]} 82. Kh4
{[%clk 0:00:06.1]} 82... Kf6 {[%clk 0:00:11.5]} 83. Bf3 {[%clk 0:00:06.3]} 83...
Bf7 {[%clk 0:00:11.7]} 84. Kg4 {[%clk 0:00:06.8]} 84... Kg7 {[%clk 0:00:11.5]}
85. Kf4 {[%clk 0:00:07.7]} 85... Bg6 {[%clk 0:00:11.7]} 86. g4 {[%clk
0:00:07.8]} 86... Bb1 {[%clk 0:00:11.3]} 87. g5 {[%clk 0:00:08.5]} 87... Bc2
{[%clk 0:00:11.3]} 88. Bg4 {[%clk 0:00:08.7]} 88... Bb1 {[%clk 0:00:11.4]} 89.
Be2 {[%clk 0:00:09.3]} 89... Bc2 {[%clk 0:00:11.4]} 90. Bc4 {[%clk 0:00:09.5]}
90... Bb1 {[%clk 0:00:11.5]} 91. Bb3 {[%clk 0:00:10]} 91... Bd3 {[%clk
0:00:11.3]} 92. Bd1 {[%clk 0:00:09.9]} 92... Bb1 {[%clk 0:00:11.3]} 93. Kg4
{[%clk 0:00:09.4]} 93... Kg6 {[%clk 0:00:10.6]} 94. Ba4 {[%clk 0:00:09.1]} 94...
Kg7 {[%clk 0:00:10.6]} 95. Bc6 {[%clk 0:00:09.1]} 95... Bc2 {[%clk 0:00:10.5]}
96. Bd5 {[%clk 0:00:09.1]} 96... Bb1 {[%clk 0:00:10.6]} 97. Kh5 {[%clk
0:00:08.5]} 97... Bg6+ {[%clk 0:00:10.3]} 98. Kh4 {[%clk 0:00:09.2]} 98... Bb1
{[%clk 0:00:11.2]} 99. Kg3 {[%clk 0:00:09.3]} 99... Bg6 {[%clk 0:00:11]} 100.
Kf4 {[%clk 0:00:10.2]} 100... Bb1 {[%clk 0:00:11.4]} 101. Be4 {[%clk 0:00:10.4]}
101... Bxe4 {[%clk 0:00:11.1]} 102. Kxe4 {[%clk 0:00:11.3]} 102... Kg6 {[%clk
0:00:11.6]} 103. Kf4 {[%clk 0:00:12.2]} 103... Kg7 {[%clk 0:00:11.9]} 104. Kf5
{[%clk 0:00:13.1]} 104... Kf7 {[%clk 0:00:12.1]} 105. g6+ {[%clk 0:00:14]}
105... Kg7 {[%clk 0:00:12.5]} 106. Kg5 {[%clk 0:00:14.9]} 106... Kg8 {[%clk
0:00:12.8]} 107. Kh5 {[%clk 0:00:15.5]} 107... Kg7 {[%clk 0:00:13]} 108. Kg5
{[%clk 0:00:16.1]} 108... Kg8 {[%clk 0:00:13.2]} 109. Kf6 {[%clk 0:00:17]}
109... Kf8 {[%clk 0:00:13.4]} 110. Ke5 {[%clk 0:00:17.9]} 110... Kg7 {[%clk
0:00:13.5]} 111. Kf5 {[%clk 0:00:18.8]} 111... Kg8 {[%clk 0:00:13.8]} 112. Kg5
{[%clk 0:00:19.7]} 112... Kg7 {[%clk 0:00:14]} 113. Kh5 {[%clk 0:00:20.6]}
113... Kg8 {[%clk 0:00:14.2]} 114. Kh6 {[%clk 0:00:21.5]} 114... Kh8 {[%clk
0:00:14.3]} 115. g7+ {[%clk 0:00:22.4]} 115... Kg8 {[%clk 0:00:14.5]} 116. Kg6
{[%clk 0:00:23.3]} 1/2-1/2

[Event "*** SCC Grand Prix: Titled Tuesday Blitz"]
[Site "Chess.com"]
[Date "2020.07.21"]
[Round "5"]
[White "DishonorOnYourCow"]
[Black "harkerchess"]
[Result "1-0"]
[WhiteElo "2323"]
[BlackElo "2109"]
[TimeControl "180+1"]
[EndTime "10:49:00 PDT"]
[Termination "DishonorOnYourCow won by resignation"]

1. d4 {[%clk 0:03:00.9]} 1... d5 {[%clk 0:03:00]} 2. c4 {[%clk 0:03:00.1]} 2...
c6 {[%clk 0:03:00.3]} 3. Nf3 {[%clk 0:02:59.5]} 3... Nf6 {[%clk 0:03:00]} 4. e3
{[%clk 0:02:56.5]} 4... e6 {[%clk 0:02:59.4]} 5. b3 {[%clk 0:02:53.8]} 5... Bd6
{[%clk 0:02:59.9]} 6. Bd3 {[%clk 0:02:52.2]} 6... Nbd7 {[%clk 0:02:59.9]} 7. Bb2
{[%clk 0:02:51.9]} 7... O-O {[%clk 0:02:54.6]} 8. O-O {[%clk 0:02:51.3]} 8... e5
{[%clk 0:02:53.7]} 9. dxe5 {[%clk 0:02:49]} 9... Nxe5 {[%clk 0:02:52.2]} 10.
Nxe5 {[%clk 0:02:48.4]} 10... Bxe5 {[%clk 0:02:53.1]} 11. Bxe5 {[%clk
0:02:48.3]} 11... dxc4 {[%clk 0:02:54]} 12. Bxc4 {[%clk 0:02:46.3]} 1-0

[Event "*** SCC Grand Prix: Titled Tuesday Blitz"]
[Site "Chess.com"]
[Date "2020.07.21"]
[Round "5"]
[White "DenisQ"]
[Black "Makswolf200817"]
[Result "1/2-1/2"]
[WhiteElo "2627"]
[BlackElo "2482"]
[TimeControl "180+1"]
[EndTime "10:51:05 PDT"]
[Termination "Game drawn by agreement"]

1. Nf3 {[%clk 0:03:00.9]} 1... d5 {[%clk 0:02:58.9]} 2. c4 {[%clk 0:02:56.7]}
2... c6 {[%clk 0:02:57]} 3. cxd5 {[%clk 0:02:56.3]} 3... cxd5 {[%clk 0:02:56.8]}
4. d4 {[%clk 0:02:57.2]} 4... Nc6 {[%clk 0:02:54.7]} 5. Nc3 {[%clk 0:02:58.1]}
5... Bf5 {[%clk 0:02:53.4]} 6. Qb3 {[%clk 0:02:52.5]} 6... e6 {[%clk 0:02:19]}
7. Qxb7 {[%clk 0:02:50.2]} 7... Nb4 {[%clk 0:02:12.9]} 8. e4 {[%clk 0:02:44.9]}
8... a6 {[%clk 0:01:57.6]} 9. exf5 {[%clk 0:02:31.3]} 9... Rb8 {[%clk
0:01:56.4]} 10. Qa7 {[%clk 0:02:16.2]} 10... Ra8 {[%clk 0:01:35.7]} 11. Qb7
{[%clk 0:02:03.6]} 11... Rb8 {[%clk 0:01:35.2]} 1/2-1/2

[Event "*** SCC Grand Prix: Titled Tuesday Blitz"]
[Site "Chess.com"]
[Date "2020.07.21"]
[Round "5"]
[White "Nayemhaque22"]
[Black "Savva09022009"]
[Result "1-0"]
[WhiteElo "2208"]
[BlackElo "2440"]
[TimeControl "180+1"]
[EndTime "10:51:41 PDT"]
[Termination "Nayemhaque22 won by resignation"]

1. e4 {[%clk 0:03:00.9]} 1... c5 {[%clk 0:02:59.5]} 2. Nf3 {[%clk 0:03:00.6]}
2... d6 {[%clk 0:02:57.6]} 3. d4 {[%clk 0:02:59.8]} 3... cxd4 {[%clk 0:02:58.5]}
4. Nxd4 {[%clk 0:02:58.8]} 4... Nf6 {[%clk 0:02:59.4]} 5. Nc3 {[%clk 0:02:58.3]}
5... a6 {[%clk 0:02:57.7]} 6. h3 {[%clk 0:02:54.7]} 6... e5 {[%clk 0:02:55.7]}
7. Nb3 {[%clk 0:02:50.4]} 7... Be7 {[%clk 0:02:48.7]} 8. Be3 {[%clk 0:02:48.8]}
8... O-O {[%clk 0:02:49.6]} 9. Qd2 {[%clk 0:02:47]} 9... a5 {[%clk 0:02:48.7]}
10. a4 {[%clk 0:02:40.7]} 10... Nc6 {[%clk 0:02:47.3]} 11. g4 {[%clk 0:02:40.6]}
11... Be6 {[%clk 0:02:46.5]} 12. g5 {[%clk 0:02:37.6]} 12... Nd7 {[%clk
0:02:45.1]} 13. h4 {[%clk 0:02:32.5]} 13... f6 {[%clk 0:02:37.1]} 14. Nb5 {[%clk
0:02:27.5]} 14... Nc5 {[%clk 0:02:26.6]} 15. Nxc5 {[%clk 0:02:19.2]} 15... dxc5
{[%clk 0:02:27.5]} 16. O-O-O {[%clk 0:02:08.8]} 16... Qxd2+ {[%clk 0:02:13.6]}
17. Rxd2 {[%clk 0:02:06.5]} 17... Nd4 {[%clk 0:02:14.5]} 18. Bxd4 {[%clk
0:02:02.8]} 18... cxd4 {[%clk 0:02:15.4]} 19. Nc7 {[%clk 0:02:00.5]} 19... Bb4
{[%clk 0:01:54.6]} 20. Nxe6 {[%clk 0:01:58.5]} 20... Bxd2+ {[%clk 0:01:53.3]}
21. Kxd2 {[%clk 0:01:57.8]} 21... Rfe8 {[%clk 0:01:52.6]} 22. Nc7 {[%clk
0:01:56.3]} 1-0

[Event "*** SCC Grand Prix: Titled Tuesday Blitz"]
[Site "Chess.com"]
[Date "2020.07.21"]
[Round "5"]
[White "vladgoncharov"]
[Black "Juanovic"]
[Result "1-0"]
[WhiteElo "2374"]
[BlackElo "2079"]
[TimeControl "180+1"]
[EndTime "10:52:06 PDT"]
[Termination "vladgoncharov won by resignation"]

1. d4 {[%clk 0:03:00.9]} 1... Nf6 {[%clk 0:02:59.3]} 2. c4 {[%clk 0:03:00]} 2...
g6 {[%clk 0:02:58.9]} 3. Nc3 {[%clk 0:02:59.5]} 3... Bg7 {[%clk 0:02:58.9]} 4.
e4 {[%clk 0:02:58.7]} 4... d6 {[%clk 0:02:59]} 5. Nf3 {[%clk 0:02:58]} 5... Nbd7
{[%clk 0:02:59]} 6. Be2 {[%clk 0:02:58.5]} 6... O-O {[%clk 0:02:59.1]} 7. O-O
{[%clk 0:02:57.9]} 7... e5 {[%clk 0:02:57.5]} 8. b3 {[%clk 0:02:39.1]} 8... Re8
{[%clk 0:02:44.5]} 9. d5 {[%clk 0:02:34.7]} 9... a5 {[%clk 0:02:41.7]} 10. Be3
{[%clk 0:02:30.8]} 10... b6 {[%clk 0:02:41]} 11. Nd2 {[%clk 0:02:26.5]} 11... h6
{[%clk 0:02:36.1]} 12. a3 {[%clk 0:02:25.8]} 12... Nf8 {[%clk 0:02:31.2]} 13. b4
{[%clk 0:02:23]} 13... axb4 {[%clk 0:02:30.8]} 14. axb4 {[%clk 0:02:22.8]} 14...
Bd7 {[%clk 0:02:30.4]} 15. Qc2 {[%clk 0:02:13.4]} 15... Ng4 {[%clk 0:02:19.6]}
16. Bxg4 {[%clk 0:02:10.8]} 16... Bxg4 {[%clk 0:02:18.6]} 17. c5 {[%clk
0:02:08.4]} 17... bxc5 {[%clk 0:02:17.1]} 18. bxc5 {[%clk 0:02:07.7]} 18... f5
{[%clk 0:01:59.4]} 19. f3 {[%clk 0:02:05.8]} 19... f4 {[%clk 0:01:58.6]} 20. Bf2
{[%clk 0:01:55.6]} 20... Bh5 {[%clk 0:01:57.3]} 21. Nc4 {[%clk 0:01:47.4]} 21...
Qf6 {[%clk 0:01:49]} 22. Rxa8 {[%clk 0:01:36.7]} 22... Rxa8 {[%clk 0:01:47.5]}
23. Nb5 {[%clk 0:01:37.2]} 23... Rd8 {[%clk 0:01:45.6]} 24. Nxc7 {[%clk
0:01:34]} 24... g5 {[%clk 0:01:42.1]} 25. Nxd6 {[%clk 0:01:25.4]} 1-0

[Event "*** SCC Grand Prix: Titled Tuesday Blitz"]
[Site "Chess.com"]
[Date "2020.07.21"]
[Round "5"]
[White "KyrgyzFighter"]
[Black "elohunter1999"]
[Result "1-0"]
[WhiteElo "2330"]
[BlackElo "2471"]
[TimeControl "180+1"]
[EndTime "10:52:23 PDT"]
[Termination "KyrgyzFighter won by checkmate"]

1. c4 {[%clk 0:02:51.1]} 1... Nf6 {[%clk 0:02:57.6]} 2. Nc3 {[%clk 0:02:48.8]}
2... e6 {[%clk 0:02:57.4]} 3. e4 {[%clk 0:02:48.8]} 3... d5 {[%clk 0:02:57.4]}
4. e5 {[%clk 0:02:49]} 4... d4 {[%clk 0:02:56.9]} 5. exf6 {[%clk 0:02:48.8]}
5... dxc3 {[%clk 0:02:56.8]} 6. bxc3 {[%clk 0:02:49.7]} 6... Qxf6 {[%clk
0:02:56.6]} 7. Nf3 {[%clk 0:02:50.4]} 7... b6 {[%clk 0:02:56]} 8. d4 {[%clk
0:02:49.6]} 8... Bb7 {[%clk 0:02:54.2]} 9. Be2 {[%clk 0:02:49.9]} 9... Bd6
{[%clk 0:02:42.6]} 10. h3 {[%clk 0:02:30.2]} 10... h6 {[%clk 0:02:35.1]} 11. Rb1
{[%clk 0:02:24.9]} 11... Nd7 {[%clk 0:02:04.6]} 12. c5 {[%clk 0:02:21.6]} 12...
Be4 {[%clk 0:02:04.5]} 13. cxd6 {[%clk 0:02:09.3]} 13... Bxb1 {[%clk 0:02:03.8]}
14. dxc7 {[%clk 0:02:03]} 14... Be4 {[%clk 0:01:51.1]} 15. Ba3 {[%clk
0:01:40.2]} 15... Qf4 {[%clk 0:01:38.9]} 16. Ne5 {[%clk 0:01:35.7]} 16... Nxe5
{[%clk 0:01:29.4]} 17. dxe5 {[%clk 0:01:35.6]} 17... Qxe5 {[%clk 0:01:27]} 18.
Qa4+ {[%clk 0:01:35.1]} 18... b5 {[%clk 0:01:15.1]} 19. Qxb5+ {[%clk 0:01:32.2]}
19... Qxb5 {[%clk 0:01:07.3]} 20. Bxb5+ {[%clk 0:01:33.1]} 20... Bc6 {[%clk
0:01:06.8]} 21. Bxc6# {[%clk 0:01:33.4]} 1-0

[Event "*** SCC Grand Prix: Titled Tuesday Blitz"]
[Site "Chess.com"]
[Date "2020.07.21"]
[Round "5"]
[White "pfalcon1949"]
[Black "szefru"]
[Result "1-0"]
[WhiteElo "2004"]
[BlackElo "2124"]
[TimeControl "180+1"]
[EndTime "10:52:25 PDT"]
[Termination "pfalcon1949 won by checkmate"]

1. d4 {[%clk 0:03:00.5]} 1... d5 {[%clk 0:02:59.9]} 2. c4 {[%clk 0:03:00.5]}
2... c6 {[%clk 0:03:00.3]} 3. cxd5 {[%clk 0:02:59]} 3... Nf6 {[%clk 0:03:00.7]}
4. Nc3 {[%clk 0:02:56.4]} 4... cxd5 {[%clk 0:03:00.3]} 5. Bf4 {[%clk 0:02:54.8]}
5... e6 {[%clk 0:02:59.9]} 6. e3 {[%clk 0:02:50.2]} 6... Nc6 {[%clk 0:03:00.1]}
7. Rc1 {[%clk 0:02:50]} 7... Bb4 {[%clk 0:02:59.7]} 8. Bd3 {[%clk 0:02:47.6]}
8... O-O {[%clk 0:02:59.1]} 9. Nf3 {[%clk 0:02:45.7]} 9... h6 {[%clk 0:02:58.4]}
10. O-O {[%clk 0:02:45.2]} 10... a6 {[%clk 0:02:56.3]} 11. Ne5 {[%clk
0:02:45.4]} 11... Nxe5 {[%clk 0:02:55.9]} 12. Bxe5 {[%clk 0:02:43.2]} 12... Nd7
{[%clk 0:02:55.9]} 13. Bf4 {[%clk 0:02:40.9]} 13... g5 {[%clk 0:02:54.7]} 14.
Bg3 {[%clk 0:02:39.8]} 14... f5 {[%clk 0:02:53.2]} 15. f3 {[%clk 0:02:29.9]}
15... Nf6 {[%clk 0:02:52.6]} 16. Qe2 {[%clk 0:02:24.1]} 16... Bd7 {[%clk
0:02:52.1]} 17. e4 {[%clk 0:02:23.7]} 17... Re8 {[%clk 0:02:49]} 18. exd5 {[%clk
0:02:12.2]} 18... Bxc3 {[%clk 0:02:45.8]} 19. bxc3 {[%clk 0:02:06.3]} 19... Nxd5
{[%clk 0:02:45.5]} 20. Qd2 {[%clk 0:02:01.6]} 20... Rc8 {[%clk 0:02:42.7]} 21.
Be5 {[%clk 0:01:49]} 21... Qa5 {[%clk 0:02:39.1]} 22. h4 {[%clk 0:01:38.9]}
22... f4 {[%clk 0:02:35]} 23. hxg5 {[%clk 0:01:38.6]} 23... hxg5 {[%clk
0:02:34.5]} 24. Bb1 {[%clk 0:01:28.4]} 24... Rxc3 {[%clk 0:02:31.1]} 25. g3
{[%clk 0:00:55.1]} 25... Qa3 {[%clk 0:02:28.4]} 26. Qh2 {[%clk 0:00:51.6]} 26...
Rxc1 {[%clk 0:02:14.7]} 27. Qh7+ {[%clk 0:00:41.2]} 27... Kf8 {[%clk 0:02:14.7]}
28. Qg7# {[%clk 0:00:41.2]} 1-0

[Event "*** SCC Grand Prix: Titled Tuesday Blitz"]
[Site "Chess.com"]
[Date "2020.07.21"]
[Round "5"]
[White "fabianvivasz"]
[Black "ASVZ"]
[Result "1-0"]
[WhiteElo "2305"]
[BlackElo "2442"]
[TimeControl "180+1"]
[EndTime "10:52:29 PDT"]
[Termination "fabianvivasz won by resignation"]

1. e4 {[%clk 0:02:33.8]} 1... e6 {[%clk 0:03:00.9]} 2. d4 {[%clk 0:02:33.5]}
2... d5 {[%clk 0:03:00.2]} 3. Nd2 {[%clk 0:02:33.5]} 3... Nc6 {[%clk 0:02:59.9]}
4. Ngf3 {[%clk 0:02:27]} 4... Nf6 {[%clk 0:03:00.2]} 5. e5 {[%clk 0:02:18.5]}
5... Nd7 {[%clk 0:03:00.7]} 6. Be2 {[%clk 0:01:51.5]} 6... f6 {[%clk 0:03:00.7]}
7. exf6 {[%clk 0:01:47.6]} 7... Qxf6 {[%clk 0:03:01.6]} 8. Nb3 {[%clk
0:01:45.5]} 8... e5 {[%clk 0:03:01.1]} 9. dxe5 {[%clk 0:01:42.5]} 9... Ndxe5
{[%clk 0:03:02]} 10. Qxd5 {[%clk 0:01:29.9]} 10... Be6 {[%clk 0:03:01.2]} 11.
Qe4 {[%clk 0:01:26.9]} 11... Bf5 {[%clk 0:02:58.8]} 12. Qe3 {[%clk 0:01:13.9]}
12... O-O-O {[%clk 0:02:33]} 13. Nxe5 {[%clk 0:01:10.9]} 13... Nxe5 {[%clk
0:02:26.5]} 14. Qxa7 {[%clk 0:01:08.5]} 14... Bb4+ {[%clk 0:02:26.5]} 15. c3
{[%clk 0:01:05.3]} 15... Nd3+ {[%clk 0:02:19]} 16. Bxd3 {[%clk 0:01:04.8]} 16...
Bxd3 {[%clk 0:02:19.9]} 17. Qa8+ {[%clk 0:00:59.3]} 17... Kd7 {[%clk 0:02:18.7]}
18. Qa4+ {[%clk 0:00:58.1]} 18... c6 {[%clk 0:02:07.8]} 19. Qxb4 {[%clk
0:00:55.2]} 19... Rhe8+ {[%clk 0:02:01.1]} 20. Be3 {[%clk 0:00:55]} 20... Kc8
{[%clk 0:01:56.5]} 21. O-O-O {[%clk 0:00:50.3]} 21... Rxe3 {[%clk 0:01:52.8]}
22. fxe3 {[%clk 0:00:49.1]} 22... Qf2 {[%clk 0:01:53.7]} 23. Rd2 {[%clk
0:00:46.6]} 23... Qf3 {[%clk 0:01:53.6]} 24. gxf3 {[%clk 0:00:46.3]} 1-0

[Event "*** SCC Grand Prix: Titled Tuesday Blitz"]
[Site "Chess.com"]
[Date "2020.07.21"]
[Round "5"]
[White "nocnypako"]
[Black "Mikasinski"]
[Result "0-1"]
[WhiteElo "2570"]
[BlackElo "2425"]
[TimeControl "180+1"]
[EndTime "10:52:46 PDT"]
[Termination "Mikasinski won by resignation"]

1. d4 {[%clk 0:03:00.9]} 1... Nf6 {[%clk 0:02:59.8]} 2. c4 {[%clk 0:02:58.9]}
2... g6 {[%clk 0:02:59.6]} 3. Nc3 {[%clk 0:02:59.2]} 3... Bg7 {[%clk 0:02:59.5]}
4. e4 {[%clk 0:02:59.8]} 4... d6 {[%clk 0:02:59.9]} 5. Nf3 {[%clk 0:03:00.4]}
5... O-O {[%clk 0:03:00.4]} 6. Be2 {[%clk 0:03:01.1]} 6... e5 {[%clk 0:03:00.9]}
7. O-O {[%clk 0:03:01.8]} 7... Nc6 {[%clk 0:03:01.4]} 8. d5 {[%clk 0:03:02.4]}
8... Ne7 {[%clk 0:03:02.1]} 9. Ne1 {[%clk 0:03:01.8]} 9... Nd7 {[%clk
0:03:02.4]} 10. Be3 {[%clk 0:03:01.7]} 10... f5 {[%clk 0:03:02.6]} 11. f3 {[%clk
0:03:02.4]} 11... f4 {[%clk 0:03:02.2]} 12. Bf2 {[%clk 0:03:02.7]} 12... g5
{[%clk 0:03:02.1]} 13. b4 {[%clk 0:03:02.3]} 13... Ng6 {[%clk 0:03:01.3]} 14. c5
{[%clk 0:03:00.4]} 14... Nf6 {[%clk 0:03:00.3]} 15. b5 {[%clk 0:02:57.3]} 15...
Rf7 {[%clk 0:02:31.5]} 16. b6 {[%clk 0:02:55]} 16... dxc5 {[%clk 0:01:59.2]} 17.
bxc7 {[%clk 0:02:53.1]} 17... Rxc7 {[%clk 0:01:54]} 18. d6 {[%clk 0:02:52.4]}
18... Rd7 {[%clk 0:01:50.4]} 19. Bxc5 {[%clk 0:02:52]} 19... Bf8 {[%clk
0:01:30.5]} 20. Nb5 {[%clk 0:02:42.1]} 20... a6 {[%clk 0:01:24.4]} 21. Qb3+
{[%clk 0:02:41]} 21... Kh8 {[%clk 0:01:19.7]} 22. Na3 {[%clk 0:02:29.6]} 22...
Bxd6 {[%clk 0:01:15.3]} 23. Bxd6 {[%clk 0:02:29.8]} 23... Rxd6 {[%clk
0:01:14.6]} 24. Nc4 {[%clk 0:02:30.4]} 24... Rc6 {[%clk 0:01:09.7]} 25. Nc2
{[%clk 0:02:27.9]} 25... b5 {[%clk 0:01:07.5]} 26. Na5 {[%clk 0:02:25.5]} 26...
Qxa5 {[%clk 0:01:06.4]} 27. Rad1 {[%clk 0:02:16]} 27... Be6 {[%clk 0:01:05.6]}
28. Qb4 {[%clk 0:02:10.9]} 28... Qb6+ {[%clk 0:01:03.8]} 29. Kh1 {[%clk
0:02:08.7]} 29... Rxc2 {[%clk 0:01:03.8]} 30. Rd6 {[%clk 0:02:08.1]} 30... Rc6
{[%clk 0:01:03.8]} 31. Rfd1 {[%clk 0:02:08.7]} 31... Rac8 {[%clk 0:00:56.1]} 32.
Rxc6 {[%clk 0:02:07]} 32... Rxc6 {[%clk 0:00:54.7]} 33. a4 {[%clk 0:02:07]}
33... bxa4 {[%clk 0:00:51.6]} 34. Qxa4 {[%clk 0:02:06.8]} 34... Bb3 {[%clk
0:00:50.5]} 35. Qa3 {[%clk 0:02:05.1]} 35... Bxd1 {[%clk 0:00:49.2]} 0-1

[Event "*** SCC Grand Prix: Titled Tuesday Blitz"]
[Site "Chess.com"]
[Date "2020.07.21"]
[Round "5"]
[White "GelmanAlexander"]
[Black "silverback96"]
[Result "1-0"]
[WhiteElo "2570"]
[BlackElo "2254"]
[TimeControl "180+1"]
[EndTime "10:52:58 PDT"]
[Termination "GelmanAlexander won by resignation"]

1. c4 {[%clk 0:03:00.9]} 1... Nf6 {[%clk 0:02:58.4]} 2. Nf3 {[%clk 0:03:00.6]}
2... c5 {[%clk 0:02:45.1]} 3. e3 {[%clk 0:03:00.4]} 3... g6 {[%clk 0:02:39.7]}
4. Be2 {[%clk 0:03:00.3]} 4... Bg7 {[%clk 0:02:40.6]} 5. O-O {[%clk 0:03:00.6]}
5... O-O {[%clk 0:02:41.5]} 6. d3 {[%clk 0:03:00.8]} 6... Nc6 {[%clk 0:02:40.3]}
7. a3 {[%clk 0:03:00.2]} 7... d5 {[%clk 0:01:49.5]} 8. cxd5 {[%clk 0:03:00.1]}
8... Nxd5 {[%clk 0:01:48.9]} 9. Nbd2 {[%clk 0:03:00.1]} 9... e5 {[%clk
0:01:40.9]} 10. Qc2 {[%clk 0:03:00.3]} 10... Qe7 {[%clk 0:01:39.3]} 11. Ne4
{[%clk 0:03:00.5]} 11... b6 {[%clk 0:01:32]} 12. b4 {[%clk 0:02:42.1]} 12... f5
{[%clk 0:01:29.9]} 13. Qb3 {[%clk 0:02:28.6]} 13... Be6 {[%clk 0:01:20.4]} 14.
Neg5 {[%clk 0:02:17.8]} 14... e4 {[%clk 0:01:02]} 15. Nxe6 {[%clk 0:01:57.1]}
15... Qxe6 {[%clk 0:00:07.3]} 16. Ng5 {[%clk 0:01:56.1]} 16... Bxa1 {[%clk
0:00:07.9]} 17. Nxe6 {[%clk 0:01:55.6]} 1-0